[Event "*** SCC Grand Prix: Titled Tuesday Blitz"]
[Site "Chess.com"]
[Date "2020.07.14"]
[Round "1"]
[White "Cocaino74"]
[Black "Monmoransy"]
[Result "1-0"]
[WhiteElo "2343"]
[BlackElo "2631"]
[TimeControl "180+1"]
[EndTime "10:04:56 PDT"]
[Termination "Cocaino74 won by resignation"]

1. e4 {[%clk 0:03:00.9]} 1... c5 {[%clk 0:02:57.5]} 2. Nf3 {[%clk 0:02:58.6]}
2... Nc6 {[%clk 0:02:57.2]} 3. Bb5 {[%clk 0:02:57.9]} 3... g6 {[%clk 0:02:56.9]}
4. Bxc6 {[%clk 0:02:56.9]} 4... bxc6 {[%clk 0:02:57.8]} 5. O-O {[%clk
0:02:53.2]} 5... Bg7 {[%clk 0:02:58.7]} 6. Re1 {[%clk 0:02:53.2]} 6... Nh6
{[%clk 0:02:58.3]} 7. c3 {[%clk 0:02:51.2]} 7... O-O {[%clk 0:02:57.9]} 8. h3
{[%clk 0:02:50.3]} 8... f5 {[%clk 0:02:57.5]} 9. e5 {[%clk 0:02:49.9]} 9... Nf7
{[%clk 0:02:57.8]} 10. d4 {[%clk 0:02:49.5]} 10... cxd4 {[%clk 0:02:58]} 11.
cxd4 {[%clk 0:02:50.4]} 11... c5 {[%clk 0:02:58.2]} 12. d5 {[%clk 0:02:48.5]}
12... Bb7 {[%clk 0:02:50.4]} 13. Nc3 {[%clk 0:02:43.8]} 13... e6 {[%clk
0:02:48.4]} 14. Bf4 {[%clk 0:02:35.9]} 14... h6 {[%clk 0:02:38.9]} 15. h4 {[%clk
0:02:34.9]} 15... Qb6 {[%clk 0:02:30.1]} 16. Rb1 {[%clk 0:02:25.6]} 16... Rfe8
{[%clk 0:02:28.1]} 17. d6 {[%clk 0:02:25.7]} 17... c4 {[%clk 0:02:17.2]} 18. Nd4
{[%clk 0:01:45.2]} 18... Rac8 {[%clk 0:02:11]} 19. b4 {[%clk 0:01:31.7]} 19...
g5 {[%clk 0:02:05.7]} 20. Bh2 {[%clk 0:01:30.3]} 20... f4 {[%clk 0:02:03.9]} 21.
Na4 {[%clk 0:01:25.8]} 21... Qa6 {[%clk 0:01:55.2]} 22. Nc5 {[%clk 0:01:24.4]}
22... Rxc5 {[%clk 0:01:48.3]} 23. bxc5 {[%clk 0:01:24.2]} 23... Nxe5 {[%clk
0:01:41]} 24. hxg5 {[%clk 0:01:14.3]} 24... Nd3 {[%clk 0:01:40.8]} 25. gxh6
{[%clk 0:01:13.4]} 25... Bxd4 {[%clk 0:01:38.8]} 26. Qh5 {[%clk 0:01:13.8]}
26... Kh8 {[%clk 0:01:25.6]} 27. Qxe8+ {[%clk 0:01:12.5]} 27... Kh7 {[%clk
0:01:23]} 28. Qxd7+ {[%clk 0:01:11.2]} 28... Kh8 {[%clk 0:01:16]} 29. Rxb7
{[%clk 0:01:10.1]} 1-0

[Event "*** SCC Grand Prix: Titled Tuesday Blitz"]
[Site "Chess.com"]
[Date "2020.07.14"]
[Round "1"]
[White "MIJUAREZ"]
[Black "BogdanDeac"]
[Result "0-1"]
[WhiteElo "2406"]
[BlackElo "2805"]
[TimeControl "180+1"]
[EndTime "10:04:57 PDT"]
[Termination "BogdanDeac won on time"]

1. e4 {[%clk 0:02:59]} 1... c5 {[%clk 0:02:58]} 2. Nf3 {[%clk 0:02:58.5]} 2...
d6 {[%clk 0:02:58.2]} 3. d4 {[%clk 0:02:58.9]} 3... cxd4 {[%clk 0:02:59.1]} 4.
Nxd4 {[%clk 0:02:59]} 4... Nf6 {[%clk 0:02:59.7]} 5. f3 {[%clk 0:02:59.5]} 5...
e5 {[%clk 0:02:57.9]} 6. Nb3 {[%clk 0:02:52.7]} 6... d5 {[%clk 0:02:57.8]} 7.
Bg5 {[%clk 0:02:49.9]} 7... d4 {[%clk 0:02:57.7]} 8. c3 {[%clk 0:02:47.8]} 8...
Nc6 {[%clk 0:02:57.4]} 9. Bb5 {[%clk 0:02:41.4]} 9... h6 {[%clk 0:02:57.3]} 10.
Bxf6 {[%clk 0:02:37.8]} 10... Qxf6 {[%clk 0:02:56.7]} 11. cxd4 {[%clk
0:02:33.3]} 11... Bb4+ {[%clk 0:02:54.5]} 12. Nc3 {[%clk 0:02:31.4]} 12... O-O
{[%clk 0:02:54]} 13. Bxc6 {[%clk 0:02:17.4]} 13... bxc6 {[%clk 0:02:53.9]} 14.
dxe5 {[%clk 0:02:17.7]} 14... Qxe5 {[%clk 0:02:53.4]} 15. Qd4 {[%clk 0:02:16.4]}
15... Qe7 {[%clk 0:02:48.6]} 16. O-O {[%clk 0:01:47.9]} 16... Be6 {[%clk
0:02:47.8]} 17. Kh1 {[%clk 0:01:38.1]} 17... a5 {[%clk 0:02:44.5]} 18. Na4
{[%clk 0:01:32.5]} 18... Rfd8 {[%clk 0:02:42.1]} 19. Qe3 {[%clk 0:01:32]} 19...
Bc4 {[%clk 0:02:41.4]} 20. Rfd1 {[%clk 0:01:30.6]} 20... Bb5 {[%clk 0:02:41.4]}
21. Nb6 {[%clk 0:01:24]} 21... Rxd1+ {[%clk 0:02:38.7]} 22. Rxd1 {[%clk
0:01:22.9]} 22... Rd8 {[%clk 0:02:39.3]} 23. Rxd8+ {[%clk 0:00:15.7]} 23... Qxd8
{[%clk 0:02:38.8]} 24. a3 {[%clk 0:00:11.8]} 24... Qd1+ {[%clk 0:02:37.6]} 25.
Qg1 {[%clk 0:00:11.3]} 25... Qxb3 {[%clk 0:02:36.5]} 26. axb4 {[%clk 0:00:11.4]}
26... axb4 {[%clk 0:02:30.7]} 27. Qc1 {[%clk 0:00:10.9]} 27... Qd3 {[%clk
0:02:23.1]} 28. h3 {[%clk 0:00:08.9]} 28... Qd4 {[%clk 0:02:18]} 29. Nc8 {[%clk
0:00:01.7]} 29... Kf8 {[%clk 0:02:16.8]} 0-1

[Event "*** SCC Grand Prix: Titled Tuesday Blitz"]
[Site "Chess.com"]
[Date "2020.07.14"]
[Round "1"]
[White "Igor_Lysyj"]
[Black "kingofthenil"]
[Result "1-0"]
[WhiteElo "2807"]
[BlackElo "2408"]
[TimeControl "180+1"]
[EndTime "10:04:58 PDT"]
[Termination "Igor_Lysyj won by resignation"]

1. d4 {[%clk 0:03:00.9]} 1... e5 {[%clk 0:02:58.3]} 2. dxe5 {[%clk 0:02:58.8]}
2... Nc6 {[%clk 0:02:57.6]} 3. Nf3 {[%clk 0:02:57.8]} 3... d6 {[%clk 0:02:57.6]}
4. exd6 {[%clk 0:02:57]} 4... Bxd6 {[%clk 0:02:58.5]} 5. g3 {[%clk 0:02:55.1]}
5... Nf6 {[%clk 0:02:59.4]} 6. Bg2 {[%clk 0:02:54.8]} 6... Bg4 {[%clk
0:03:00.3]} 7. O-O {[%clk 0:02:54.1]} 7... Qe7 {[%clk 0:03:00.1]} 8. Nc3 {[%clk
0:02:36.3]} 8... O-O-O {[%clk 0:02:59.7]} 9. Qe1 {[%clk 0:02:36.6]} 9... Nb4
{[%clk 0:02:58.5]} 10. Nb5 {[%clk 0:02:17.3]} 10... Nxc2 {[%clk 0:02:58]} 11.
Qa5 {[%clk 0:02:16.8]} 11... Nxa1 {[%clk 0:02:48.4]} 12. Qxa7 {[%clk 0:02:15.1]}
12... Qxe2 {[%clk 0:02:40.1]} 13. Nfd4 {[%clk 0:01:54.9]} 13... Qc4 {[%clk
0:02:38.9]} 14. Qxb7+ {[%clk 0:01:38.6]} 14... Kd7 {[%clk 0:02:38.5]} 15. Re1
{[%clk 0:01:36.4]} 15... Be6 {[%clk 0:02:23.1]} 16. Bc6+ {[%clk 0:01:17.3]}
16... Ke7 {[%clk 0:02:22]} 17. Nf5+ {[%clk 0:01:12.8]} 17... Kf8 {[%clk
0:02:17.3]} 18. Nbxd6 {[%clk 0:01:12.6]} 18... Rxd6 {[%clk 0:01:01.1]} 19. Qb8+
{[%clk 0:01:06.8]} 19... Rd8 {[%clk 0:00:51.6]} 20. Qxd8+ {[%clk 0:01:06.1]} 1-0

[Event "*** SCC Grand Prix: Titled Tuesday Blitz"]
[Site "Chess.com"]
[Date "2020.07.14"]
[Round "1"]
[White "Eternauta2400"]
[Black "ItsCheckM8Mate"]
[Result "1-0"]
[WhiteElo "2589"]
[BlackElo "2256"]
[TimeControl "180+1"]
[EndTime "10:04:59 PDT"]
[Termination "Eternauta2400 won by checkmate"]

1. c4 {[%clk 0:02:58.6]} 1... Nf6 {[%clk 0:02:59.4]} 2. Nc3 {[%clk 0:02:58.2]}
2... e5 {[%clk 0:02:54.8]} 3. Nf3 {[%clk 0:02:57.5]} 3... Nc6 {[%clk 0:02:54.1]}
4. e4 {[%clk 0:02:57.7]} 4... Bc5 {[%clk 0:02:46.5]} 5. Nxe5 {[%clk 0:02:57.6]}
5... Nxe5 {[%clk 0:02:42.8]} 6. d4 {[%clk 0:02:55.2]} 6... Bb4 {[%clk
0:02:30.4]} 7. dxe5 {[%clk 0:02:54.7]} 7... Nxe4 {[%clk 0:02:29.9]} 8. Qf3
{[%clk 0:02:55.2]} 8... Nxc3 {[%clk 0:02:15.2]} 9. bxc3 {[%clk 0:02:49.8]} 9...
Bc5 {[%clk 0:02:14.7]} 10. Qg3 {[%clk 0:02:47.5]} 10... g6 {[%clk 0:01:47.8]}
11. Bh6 {[%clk 0:02:46.5]} 11... Bf8 {[%clk 0:01:46.9]} 12. Bxf8 {[%clk
0:02:36.9]} 12... Kxf8 {[%clk 0:01:46.4]} 13. Bd3 {[%clk 0:02:36.6]} 13... Kg7
{[%clk 0:01:40.5]} 14. O-O {[%clk 0:02:35.9]} 14... b6 {[%clk 0:01:38.4]} 15. f4
{[%clk 0:02:35.5]} 15... Re8 {[%clk 0:01:16.4]} 16. f5 {[%clk 0:02:34.6]} 16...
d5 {[%clk 0:01:01.9]} 17. f6+ {[%clk 0:02:32.5]} 17... Kh8 {[%clk 0:00:56.6]}
18. Qf4 {[%clk 0:02:17.6]} 18... Ba6 {[%clk 0:00:25.9]} 19. Qh6 {[%clk
0:02:12.3]} 19... Rg8 {[%clk 0:00:25.9]} 20. Rf3 {[%clk 0:02:08.8]} 20... Qf8
{[%clk 0:00:17.3]} 21. Qh4 {[%clk 0:01:59.6]} 21... Bxc4 {[%clk 0:00:15.2]} 22.
Rh3 {[%clk 0:01:55.7]} 22... h5 {[%clk 0:00:15.1]} 23. Qxh5+ {[%clk 0:01:56]}
23... gxh5 {[%clk 0:00:13.4]} 24. Rxh5+ {[%clk 0:01:56.5]} 24... Qh6 {[%clk
0:00:12.9]} 25. Rxh6# {[%clk 0:01:56.5]} 1-0

[Event "*** SCC Grand Prix: Titled Tuesday Blitz"]
[Site "Chess.com"]
[Date "2020.07.14"]
[Round "1"]
[White "Rap_woyska"]
[Black "Bulldog167"]
[Result "0-1"]
[WhiteElo "2362"]
[BlackElo "2698"]
[TimeControl "180+1"]
[EndTime "10:05:00 PDT"]
[Termination "Bulldog167 won by resignation"]

1. c4 {[%clk 0:03:00.9]} 1... e6 {[%clk 0:02:57.7]} 2. Nf3 {[%clk 0:03:00.8]}
2... d5 {[%clk 0:02:58.3]} 3. e3 {[%clk 0:03:01.7]} 3... Nf6 {[%clk 0:02:58.4]}
4. b3 {[%clk 0:03:01.9]} 4... c5 {[%clk 0:02:54.1]} 5. Bb2 {[%clk 0:03:01.9]}
5... Nc6 {[%clk 0:02:54.3]} 6. cxd5 {[%clk 0:03:02.4]} 6... exd5 {[%clk
0:02:54.3]} 7. Bb5 {[%clk 0:03:03.3]} 7... Bd6 {[%clk 0:02:52.3]} 8. O-O {[%clk
0:03:02.7]} 8... O-O {[%clk 0:02:52]} 9. d4 {[%clk 0:03:03.2]} 9... Bg4 {[%clk
0:02:46.4]} 10. dxc5 {[%clk 0:03:02.7]} 10... Bxc5 {[%clk 0:02:46.8]} 11. Be2
{[%clk 0:02:42.9]} 11... Re8 {[%clk 0:02:40]} 12. Nc3 {[%clk 0:02:40.5]} 12...
a6 {[%clk 0:02:37.8]} 13. Na4 {[%clk 0:02:39.4]} 13... Ba7 {[%clk 0:02:36.1]}
14. Nd4 {[%clk 0:02:38.9]} 14... Bxd4 {[%clk 0:02:26.2]} 15. Bxg4 {[%clk
0:02:36.7]} 15... Bxb2 {[%clk 0:02:20]} 16. Nxb2 {[%clk 0:02:36.8]} 16... d4
{[%clk 0:02:17.3]} 17. Nc4 {[%clk 0:02:09.4]} 17... b5 {[%clk 0:02:16.4]} 18.
Bf3 {[%clk 0:01:48.6]} 18... Rc8 {[%clk 0:02:16.4]} 19. Bxc6 {[%clk 0:01:35.4]}
19... Rxc6 {[%clk 0:02:16.3]} 20. Qf3 {[%clk 0:01:36]} 20... Rce6 {[%clk
0:02:04.9]} 21. Nb2 {[%clk 0:01:10.7]} 21... dxe3 {[%clk 0:02:04.8]} 22. fxe3
{[%clk 0:01:07.8]} 22... Rxe3 {[%clk 0:02:04.8]} 23. Qc6 {[%clk 0:00:49.3]}
23... Qd4 {[%clk 0:01:51.5]} 24. Rad1 {[%clk 0:00:21.2]} 24... Qxb2 {[%clk
0:01:46.4]} 0-1

[Event "*** SCC Grand Prix: Titled Tuesday Blitz"]
[Site "Chess.com"]
[Date "2020.07.14"]
[Round "1"]
[White "PavelShkapenko"]
[Black "warmoatmeal"]
[Result "1-0"]
[WhiteElo "2603"]
[BlackElo "2297"]
[TimeControl "180+1"]
[EndTime "10:05:08 PDT"]
[Termination "PavelShkapenko won by resignation"]

1. e4 {[%clk 0:02:51.7]} 1... c6 {[%clk 0:02:59.2]} 2. d4 {[%clk 0:02:51.1]}
2... d5 {[%clk 0:02:58.9]} 3. e5 {[%clk 0:02:50]} 3... c5 {[%clk 0:02:58.6]} 4.
dxc5 {[%clk 0:02:50.1]} 4... e6 {[%clk 0:02:57.8]} 5. a3 {[%clk 0:02:50]} 5...
Nd7 {[%clk 0:02:36.2]} 6. b4 {[%clk 0:02:40.6]} 6... Nxe5 {[%clk 0:02:35.6]} 7.
Bb2 {[%clk 0:02:41.2]} 7... Ng6 {[%clk 0:02:35.3]} 8. Nf3 {[%clk 0:02:40.4]}
8... Nf6 {[%clk 0:02:35.4]} 9. c4 {[%clk 0:02:24.6]} 9... Be7 {[%clk 0:02:26.2]}
10. cxd5 {[%clk 0:02:23]} 10... Nxd5 {[%clk 0:02:27.1]} 11. Bxg7 {[%clk
0:02:18.8]} 11... Rg8 {[%clk 0:02:27.4]} 12. Bb2 {[%clk 0:02:19.4]} 12... Bf6
{[%clk 0:02:26.2]} 13. Ra2 {[%clk 0:02:08.2]} 13... Bd7 {[%clk 0:02:23.2]} 14.
Nbd2 {[%clk 0:02:03.3]} 14... Bxb2 {[%clk 0:02:17.5]} 15. Rxb2 {[%clk
0:02:02.6]} 15... Qf6 {[%clk 0:02:17.8]} 16. Nc4 {[%clk 0:02:00.3]} 16... O-O-O
{[%clk 0:02:15.2]} 17. Qd4 {[%clk 0:02:00]} 17... e5 {[%clk 0:01:56.1]} 18. Qxd5
{[%clk 0:01:52.4]} 18... Bc6 {[%clk 0:01:54.8]} 19. Nd6+ {[%clk 0:01:51.6]}
19... Rxd6 {[%clk 0:01:54.4]} 20. Qxd6 {[%clk 0:01:51.8]} 20... Qf5 {[%clk
0:01:53.6]} 21. Bd3 {[%clk 0:01:18.2]} 21... e4 {[%clk 0:01:52.3]} 22. Nd4
{[%clk 0:01:17.7]} 22... Qg5 {[%clk 0:01:42.2]} 23. Nxc6 {[%clk 0:01:14.6]}
23... Qc1+ {[%clk 0:01:42.4]} 24. Ke2 {[%clk 0:01:09.4]} 24... Nf4+ {[%clk
0:01:29.3]} 25. Qxf4 {[%clk 0:01:01.2]} 25... exd3+ {[%clk 0:01:29.6]} 26. Kf3
{[%clk 0:01:00.3]} 26... Qxb2 {[%clk 0:01:16.2]} 27. Qb8+ {[%clk 0:00:51.9]}
27... Kd7 {[%clk 0:01:15.8]} 28. Qxg8 {[%clk 0:00:48.4]} 1-0

[Event "*** SCC Grand Prix: Titled Tuesday Blitz"]
[Site "Chess.com"]
[Date "2020.07.14"]
[Round "1"]
[White "superchess02"]
[Black "PowerThinking2650"]
[Result "1-0"]
[WhiteElo "2655"]
[BlackElo "2338"]
[TimeControl "180+1"]
[EndTime "10:05:09 PDT"]
[Termination "superchess02 won by resignation"]

1. d4 {[%clk 0:02:56.8]} 1... Nf6 {[%clk 0:02:57]} 2. c4 {[%clk 0:02:56.8]} 2...
g6 {[%clk 0:02:55.8]} 3. Nc3 {[%clk 0:02:57.1]} 3... Bg7 {[%clk 0:02:55.4]} 4.
e4 {[%clk 0:02:55.9]} 4... d6 {[%clk 0:02:54.1]} 5. Nf3 {[%clk 0:02:56.5]} 5...
O-O {[%clk 0:02:53.5]} 6. Be2 {[%clk 0:02:57]} 6... e5 {[%clk 0:02:53.1]} 7. O-O
{[%clk 0:02:57.2]} 7... Nc6 {[%clk 0:02:52.7]} 8. d5 {[%clk 0:02:57.1]} 8... Ne7
{[%clk 0:02:52.7]} 9. b4 {[%clk 0:02:57.3]} 9... Nh5 {[%clk 0:02:51.6]} 10. Re1
{[%clk 0:02:55]} 10... a5 {[%clk 0:02:50.7]} 11. bxa5 {[%clk 0:02:54.5]} 11...
f5 {[%clk 0:02:50.2]} 12. Nd2 {[%clk 0:02:51.1]} 12... Nf4 {[%clk 0:02:48.5]}
13. Nb3 {[%clk 0:02:50]} 13... fxe4 {[%clk 0:02:45.5]} 14. Nxe4 {[%clk
0:02:50.9]} 14... Nf5 {[%clk 0:02:44.3]} 15. g3 {[%clk 0:02:34.1]} 15... Nh3+
{[%clk 0:02:38.8]} 16. Kg2 {[%clk 0:02:32.5]} 16... Nd4 {[%clk 0:02:28.8]} 17.
Bg4 {[%clk 0:02:26.2]} 17... Bxg4 {[%clk 0:01:36.9]} 18. Qxg4 {[%clk 0:02:27.1]}
18... Nf3 {[%clk 0:01:27.5]} 19. Rd1 {[%clk 0:02:12]} 19... Nf4+ {[%clk
0:00:58.8]} 20. gxf4 {[%clk 0:02:07.7]} 20... Nh4+ {[%clk 0:00:55.9]} 21. Kh3
{[%clk 0:02:00.5]} 21... exf4 {[%clk 0:00:51.6]} 22. Qxh4 {[%clk 0:01:42.7]}
22... Qd7+ {[%clk 0:00:49.2]} 23. Qg4 {[%clk 0:01:41.9]} 23... Rf5 {[%clk
0:00:49.4]} 24. Kg2 {[%clk 0:01:38.8]} 24... Bxa1 {[%clk 0:00:45.6]} 25. Nxa1
{[%clk 0:01:38.2]} 25... Re8 {[%clk 0:00:39.4]} 26. Nf6+ {[%clk 0:01:37.7]} 1-0

[Event "*** SCC Grand Prix: Titled Tuesday Blitz"]
[Site "Chess.com"]
[Date "2020.07.14"]
[Round "1"]
[White "csati17"]
[Black "ZverevLev"]
[Result "0-1"]
[WhiteElo "2633"]
[BlackElo "2345"]
[TimeControl "180+1"]
[EndTime "10:05:09 PDT"]
[Termination "ZverevLev won by resignation"]

1. c4 {[%clk 0:03:00.9]} 1... e5 {[%clk 0:02:56.2]} 2. g3 {[%clk 0:03:00.4]}
2... Nf6 {[%clk 0:02:52.8]} 3. Bg2 {[%clk 0:03:00.2]} 3... d5 {[%clk 0:02:51.8]}
4. cxd5 {[%clk 0:03:01.1]} 4... Nxd5 {[%clk 0:02:52.1]} 5. Nc3 {[%clk 0:03:02]}
5... Nb6 {[%clk 0:02:49.8]} 6. Nf3 {[%clk 0:03:00.7]} 6... Nc6 {[%clk 0:02:44]}
7. O-O {[%clk 0:03:00.3]} 7... Be7 {[%clk 0:02:38.5]} 8. a3 {[%clk 0:03:00.6]}
8... O-O {[%clk 0:02:29.2]} 9. b4 {[%clk 0:02:59.9]} 9... a6 {[%clk 0:02:27.4]}
10. d3 {[%clk 0:02:58.3]} 10... Be6 {[%clk 0:02:23.9]} 11. Bb2 {[%clk
0:02:55.9]} 11... Qd7 {[%clk 0:02:15.5]} 12. Ne4 {[%clk 0:02:43.8]} 12... h6
{[%clk 0:02:13]} 13. Nxe5 {[%clk 0:02:41.5]} 13... Nxe5 {[%clk 0:02:09.9]} 14.
Bxe5 {[%clk 0:02:42.4]} 14... Bh3 {[%clk 0:02:05.7]} 15. Rc1 {[%clk 0:02:37.6]}
15... Bxg2 {[%clk 0:01:58.4]} 16. Kxg2 {[%clk 0:02:38.5]} 16... f5 {[%clk
0:01:52]} 17. Bxc7 {[%clk 0:02:27.3]} 17... Nd5 {[%clk 0:01:48.1]} 18. Qb3
{[%clk 0:02:27.2]} 18... Qe6 {[%clk 0:01:42.7]} 19. Nd2 {[%clk 0:02:09]} 19...
f4 {[%clk 0:01:34.2]} 20. Bxf4 {[%clk 0:01:59.6]} 20... Kh8 {[%clk 0:01:24.3]}
21. Rc4 {[%clk 0:01:21.8]} 21... Qxe2 {[%clk 0:01:19.6]} 22. Nf3 {[%clk
0:01:06.1]} 22... Rxf4 {[%clk 0:01:12.1]} 23. Rxf4 {[%clk 0:00:59]} 23... Ne3+
{[%clk 0:01:10.5]} 0-1

[Event "*** SCC Grand Prix: Titled Tuesday Blitz"]
[Site "Chess.com"]
[Date "2020.07.14"]
[Round "1"]
[White "BillieKimbah"]
[Black "londonkid"]
[Result "1-0"]
[WhiteElo "2892"]
[BlackElo "2432"]
[TimeControl "180+1"]
[EndTime "10:05:12 PDT"]
[Termination "BillieKimbah won by resignation"]

1. d4 {[%clk 0:03:00.7]} 1... Nf6 {[%clk 0:03:00]} 2. g3 {[%clk 0:02:58.6]} 2...
e6 {[%clk 0:02:58.3]} 3. Bg2 {[%clk 0:02:57]} 3... Be7 {[%clk 0:02:58]} 4. e4
{[%clk 0:02:55.5]} 4... c5 {[%clk 0:02:54.6]} 5. d5 {[%clk 0:02:53.2]} 5... d6
{[%clk 0:02:52.4]} 6. dxe6 {[%clk 0:02:45.1]} 6... Bxe6 {[%clk 0:02:50.6]} 7.
Nc3 {[%clk 0:02:45.1]} 7... Nc6 {[%clk 0:02:50.3]} 8. Nf3 {[%clk 0:02:41.8]}
8... O-O {[%clk 0:02:50.2]} 9. O-O {[%clk 0:02:41.7]} 9... a6 {[%clk 0:02:49.4]}
10. h3 {[%clk 0:02:40]} 10... h6 {[%clk 0:02:49.8]} 11. Bf4 {[%clk 0:02:37.7]}
11... Qd7 {[%clk 0:02:48.7]} 12. Kh2 {[%clk 0:02:37]} 12... Rfd8 {[%clk
0:02:47.9]} 13. Re1 {[%clk 0:02:30.7]} 13... b5 {[%clk 0:02:47]} 14. Nd5 {[%clk
0:02:23.7]} 14... Rab8 {[%clk 0:02:33.7]} 15. c3 {[%clk 0:02:20.3]} 15... b4
{[%clk 0:02:32.6]} 16. Qd2 {[%clk 0:02:16.7]} 16... bxc3 {[%clk 0:02:32.2]} 17.
bxc3 {[%clk 0:02:17.6]} 17... Na5 {[%clk 0:02:10.3]} 18. Rad1 {[%clk 0:02:15.2]}
18... Nc4 {[%clk 0:02:09.7]} 19. Qe2 {[%clk 0:02:12.5]} 19... Nb6 {[%clk
0:01:57.6]} 20. Nxf6+ {[%clk 0:02:07.7]} 20... Bxf6 {[%clk 0:01:57.8]} 21. Rxd6
{[%clk 0:02:06.2]} 21... Qe7 {[%clk 0:01:58.3]} 22. e5 {[%clk 0:01:56.7]} 22...
Bg5 {[%clk 0:01:55.9]} 23. Nxg5 {[%clk 0:01:20.7]} 23... hxg5 {[%clk 0:01:55.9]}
24. Be3 {[%clk 0:01:21.3]} 24... Rxd6 {[%clk 0:01:47.8]} 25. exd6 {[%clk
0:01:20.4]} 25... Qxd6 {[%clk 0:01:45.8]} 26. Bxg5 {[%clk 0:01:20.3]} 26... Bc4
{[%clk 0:01:20.3]} 27. Qg4 {[%clk 0:01:12]} 27... Qg6 {[%clk 0:01:09.6]} 28. Be4
{[%clk 0:01:11.4]} 28... Be6 {[%clk 0:00:56.2]} 29. Qf4 {[%clk 0:01:04.1]} 1-0

[Event "*** SCC Grand Prix: Titled Tuesday Blitz"]
[Site "Chess.com"]
[Date "2020.07.14"]
[Round "1"]
[White "pfalcon1949"]
[Black "Nikithebest"]
[Result "0-1"]
[WhiteElo "2072"]
[BlackElo "2477"]
[TimeControl "180+1"]
[EndTime "10:05:14 PDT"]
[Termination "Nikithebest won by resignation"]

1. d4 {[%clk 0:02:51.9]} 1... d5 {[%clk 0:02:58.1]} 2. c4 {[%clk 0:02:51.6]}
2... e6 {[%clk 0:02:58.2]} 3. Nc3 {[%clk 0:02:49.4]} 3... a6 {[%clk 0:02:58]} 4.
Nf3 {[%clk 0:02:47]} 4... dxc4 {[%clk 0:02:56.8]} 5. e3 {[%clk 0:02:46.2]} 5...
b5 {[%clk 0:02:56.2]} 6. a4 {[%clk 0:02:42.8]} 6... b4 {[%clk 0:02:56.3]} 7. Ne4
{[%clk 0:02:42.5]} 7... Bb7 {[%clk 0:02:54.5]} 8. Ng3 {[%clk 0:02:41.9]} 8...
Nf6 {[%clk 0:02:47.1]} 9. Bxc4 {[%clk 0:02:41.4]} 9... c5 {[%clk 0:02:47.1]} 10.
b3 {[%clk 0:02:40.5]} 10... Nc6 {[%clk 0:02:46.2]} 11. O-O {[%clk 0:02:40]}
11... Be7 {[%clk 0:02:46.2]} 12. Bb2 {[%clk 0:02:35]} 12... O-O {[%clk
0:02:44.7]} 13. dxc5 {[%clk 0:02:31.1]} 13... Bxc5 {[%clk 0:02:42.2]} 14. Qxd8
{[%clk 0:02:29.4]} 14... Rfxd8 {[%clk 0:02:41]} 15. Bxf6 {[%clk 0:02:29.8]}
15... gxf6 {[%clk 0:02:40.8]} 16. Rad1 {[%clk 0:02:30.2]} 16... Na5 {[%clk
0:02:38.5]} 17. Rc1 {[%clk 0:02:20.7]} 17... Nxc4 {[%clk 0:02:33.4]} 18. Rxc4
{[%clk 0:02:20.5]} 18... Bd6 {[%clk 0:02:25.8]} 19. e4 {[%clk 0:02:16.1]} 19...
Rac8 {[%clk 0:02:15.6]} 20. Rfc1 {[%clk 0:02:16.3]} 20... Rxc4 {[%clk
0:02:14.4]} 21. Rxc4 {[%clk 0:02:16.3]} 21... Kf8 {[%clk 0:02:01.7]} 22. Kf1
{[%clk 0:02:09.8]} 22... Ke7 {[%clk 0:02:01.6]} 23. Ke2 {[%clk 0:02:09]} 23...
a5 {[%clk 0:01:56.7]} 24. Rd4 {[%clk 0:02:04.1]} 24... Ba6+ {[%clk 0:01:54.9]}
25. Ke1 {[%clk 0:02:01.4]} 25... Rc8 {[%clk 0:01:48.1]} 26. Kd1 {[%clk
0:01:14.7]} 26... Rc3 {[%clk 0:01:42.6]} 27. Nd2 {[%clk 0:01:14.4]} 27... Bf4
{[%clk 0:01:30]} 28. Ne2 {[%clk 0:00:55.3]} 28... Bxd2 {[%clk 0:01:27]} 29. Nxc3
{[%clk 0:00:43.2]} 29... Bxc3 {[%clk 0:01:26]} 0-1

[Event "*** SCC Grand Prix: Titled Tuesday Blitz"]
[Site "Chess.com"]
[Date "2020.07.14"]
[Round "1"]
[White "FairChess_on_YouTube"]
[Black "r31415"]
[Result "1-0"]
[WhiteElo "2991"]
[BlackElo "2442"]
[TimeControl "180+1"]
[EndTime "10:05:16 PDT"]
[Termination "FairChess_on_YouTube won by resignation"]

1. e4 {[%clk 0:03:00.9]} 1... d6 {[%clk 0:02:57.3]} 2. d4 {[%clk 0:03:00.1]}
2... Nf6 {[%clk 0:02:57.8]} 3. Nc3 {[%clk 0:02:59.7]} 3... g6 {[%clk 0:02:58.4]}
4. f3 {[%clk 0:02:55.3]} 4... c6 {[%clk 0:02:58]} 5. Be3 {[%clk 0:02:54]} 5...
b5 {[%clk 0:02:58.5]} 6. Qd2 {[%clk 0:02:54]} 6... Nbd7 {[%clk 0:02:58.9]} 7.
Bd3 {[%clk 0:02:53]} 7... Qc7 {[%clk 0:02:58.2]} 8. Nge2 {[%clk 0:02:51.1]} 8...
Bb7 {[%clk 0:02:57.8]} 9. O-O-O {[%clk 0:02:36.5]} 9... Bg7 {[%clk 0:02:53.1]}
10. Bh6 {[%clk 0:02:34.9]} 10... O-O {[%clk 0:02:37.5]} 11. Ng3 {[%clk 0:02:26]}
11... Rfd8 {[%clk 0:02:25.9]} 12. h4 {[%clk 0:02:21.1]} 12... e5 {[%clk
0:02:16.5]} 13. Bxg7 {[%clk 0:02:08.8]} 13... Kxg7 {[%clk 0:02:16.1]} 14. h5
{[%clk 0:02:08.3]} 14... exd4 {[%clk 0:02:08.2]} 15. Nce2 {[%clk 0:02:07.8]}
15... d5 {[%clk 0:02:03.1]} 16. Qg5 {[%clk 0:01:50.4]} 16... Qe5 {[%clk
0:00:52]} 17. Nf5+ {[%clk 0:01:48.8]} 17... Kg8 {[%clk 0:00:40.9]} 18. hxg6
{[%clk 0:01:42.9]} 18... fxg6 {[%clk 0:00:39.4]} 19. exd5 {[%clk 0:01:21.1]}
19... Nxd5 {[%clk 0:00:30.5]} 20. Nexd4 {[%clk 0:01:18.4]} 20... Nf8 {[%clk
0:00:25.1]} 21. Nh6+ {[%clk 0:01:17]} 1-0